[Event "*** SCC Grand Prix: Titled Tuesday Blitz"]
[Site "Chess.com"]
[Date "2020.06.23"]
[Round "1"]
[White "NMZanette"]
[Black "Chigorinetz"]
[Result "1/2-1/2"]
[WhiteElo "2150"]
[BlackElo "2514"]
[TimeControl "180+1"]
[EndTime "10:09:10 PDT"]
[Termination "Game drawn - insufficient material"]

1. e4 {[%clk 0:03:00.9]} 1... c5 {[%clk 0:02:59.2]} 2. Nf3 {[%clk 0:02:59.2]}
2... Nc6 {[%clk 0:02:58.3]} 3. Bb5 {[%clk 0:02:58.1]} 3... g5 {[%clk 0:02:57.7]}
4. h3 {[%clk 0:02:55.2]} 4... Nf6 {[%clk 0:02:57.1]} 5. e5 {[%clk 0:02:53.9]}
5... g4 {[%clk 0:02:56.4]} 6. Bxc6 {[%clk 0:02:48.2]} 6... dxc6 {[%clk
0:02:54.8]} 7. exf6 {[%clk 0:02:47.1]} 7... gxf3 {[%clk 0:02:54.4]} 8. Qxf3
{[%clk 0:02:46.9]} 8... Qd5 {[%clk 0:02:44.4]} 9. Qxd5 {[%clk 0:02:28.4]} 9...
cxd5 {[%clk 0:02:43.9]} 10. fxe7 {[%clk 0:02:27.3]} 10... Bxe7 {[%clk 0:02:43]}
11. O-O {[%clk 0:02:26.9]} 11... Rg8 {[%clk 0:02:42.3]} 12. Kh1 {[%clk
0:02:24.6]} 12... Be6 {[%clk 0:02:23.7]} 13. d3 {[%clk 0:02:17.2]} 13... Kd7
{[%clk 0:02:23.1]} 14. Nc3 {[%clk 0:02:16.2]} 14... Rg6 {[%clk 0:02:22.2]} 15.
f4 {[%clk 0:02:06.6]} 15... Rag8 {[%clk 0:02:12.9]} 16. f5 {[%clk 0:02:00.8]}
16... Rxg2 {[%clk 0:02:11.4]} 17. fxe6+ {[%clk 0:02:00.8]} 17... fxe6 {[%clk
0:02:11.2]} 18. Bf4 {[%clk 0:01:57]} 18... Rxc2 {[%clk 0:02:10.1]} 19. Rg1
{[%clk 0:01:44.8]} 19... Rxg1+ {[%clk 0:02:09.4]} 20. Rxg1 {[%clk 0:01:44.4]}
20... Bf6 {[%clk 0:02:09.7]} 21. Nd1 {[%clk 0:01:34.9]} 21... b5 {[%clk
0:02:04.9]} 22. Rg2 {[%clk 0:01:33.2]} 22... Rxg2 {[%clk 0:02:01]} 23. Kxg2
{[%clk 0:01:33.6]} 23... c4 {[%clk 0:01:58.9]} 24. dxc4 {[%clk 0:01:30.2]} 24...
bxc4 {[%clk 0:01:58.6]} 25. Kf3 {[%clk 0:01:25.9]} 25... e5 {[%clk 0:01:56.8]}
26. Bd2 {[%clk 0:01:24.5]} 26... Ke6 {[%clk 0:01:54.5]} 27. Nc3 {[%clk
0:01:21.1]} 27... e4+ {[%clk 0:01:49.7]} 28. Ke2 {[%clk 0:01:20.1]} 28... a6
{[%clk 0:01:37.9]} 29. Bf4 {[%clk 0:01:10.6]} 29... Be7 {[%clk 0:01:23.8]} 30.
Na4 {[%clk 0:01:02.2]} 30... d4 {[%clk 0:01:21.4]} 31. Nb6 {[%clk 0:00:58]}
31... d3+ {[%clk 0:01:20.8]} 32. Kd1 {[%clk 0:00:55.8]} 32... Bc5 {[%clk
0:00:47.4]} 33. Nxc4 {[%clk 0:00:54.2]} 33... Kf5 {[%clk 0:00:43.8]} 34. Bd2
{[%clk 0:00:47.2]} 34... Bd4 {[%clk 0:00:27.6]} 35. b3 {[%clk 0:00:42.9]} 35...
Kg6 {[%clk 0:00:26.9]} 36. Ke1 {[%clk 0:00:42.6]} 36... Kh5 {[%clk 0:00:26.5]}
37. Kf1 {[%clk 0:00:43.1]} 37... Kg6 {[%clk 0:00:24.6]} 38. Kg2 {[%clk
0:00:43.2]} 38... Kf5 {[%clk 0:00:24.3]} 39. b4 {[%clk 0:00:37.1]} 39... Ke6
{[%clk 0:00:22.6]} 40. Ne3 {[%clk 0:00:32.9]} 40... Be5 {[%clk 0:00:21.8]} 41.
a4 {[%clk 0:00:31.3]} 41... Kd7 {[%clk 0:00:19.9]} 42. Nc4 {[%clk 0:00:30.3]}
42... Bb8 {[%clk 0:00:18.2]} 43. Be3 {[%clk 0:00:25.5]} 43... Kc6 {[%clk
0:00:17]} 44. Bc5 {[%clk 0:00:20]} 44... Kd5 {[%clk 0:00:16.5]} 45. Ne3+ {[%clk
0:00:20.6]} 45... Kc6 {[%clk 0:00:15.3]} 46. Kf2 {[%clk 0:00:20.7]} 46... Bf4
{[%clk 0:00:14.5]} 47. Nc4 {[%clk 0:00:20]} 47... Kd5 {[%clk 0:00:13.8]} 48.
Nb6+ {[%clk 0:00:20.6]} 48... Kc6 {[%clk 0:00:13.4]} 49. Nc4 {[%clk 0:00:18.2]}
49... Kd5 {[%clk 0:00:13.2]} 50. Nd2 {[%clk 0:00:18.9]} 50... Bg5 {[%clk
0:00:11.9]} 51. Be3 {[%clk 0:00:19]} 51... Bh4+ {[%clk 0:00:11.4]} 52. Kg2
{[%clk 0:00:18.1]} 52... Bf6 {[%clk 0:00:12.3]} 53. b5 {[%clk 0:00:18.2]} 53...
axb5 {[%clk 0:00:12.1]} 54. axb5 {[%clk 0:00:18.8]} 54... Bc3 {[%clk 0:00:12.2]}
55. b6 {[%clk 0:00:18.6]} 55... Be5 {[%clk 0:00:11]} 56. Nb3 {[%clk 0:00:17.6]}
56... Kc4 {[%clk 0:00:09.6]} 57. Nd2+ {[%clk 0:00:17.9]} 57... Kd5 {[%clk
0:00:08.8]} 58. h4 {[%clk 0:00:18.1]} 58... h5 {[%clk 0:00:08.1]} 59. Kf1 {[%clk
0:00:18]} 59... Bd6 {[%clk 0:00:07.3]} 60. Ke1 {[%clk 0:00:17.7]} 60... Bg3+
{[%clk 0:00:07.1]} 61. Kd1 {[%clk 0:00:18.2]} 61... Kc6 {[%clk 0:00:07.1]} 62.
Nxe4 {[%clk 0:00:17.1]} 62... Bxh4 {[%clk 0:00:06.8]} 63. Kd2 {[%clk 0:00:15.1]}
63... Be7 {[%clk 0:00:05.9]} 64. Kxd3 {[%clk 0:00:15.3]} 64... h4 {[%clk
0:00:05.7]} 65. Ke2 {[%clk 0:00:15.5]} 65... h3 {[%clk 0:00:05.1]} 66. Kf1
{[%clk 0:00:15.6]} 66... Bd8 {[%clk 0:00:02.9]} 67. Kg1 {[%clk 0:00:15.3]} 67...
Bxb6 {[%clk 0:00:03.8]} 68. Bxb6 {[%clk 0:00:15.2]} 68... Kxb6 {[%clk
0:00:02.9]} 69. Kh2 {[%clk 0:00:15.8]} 69... Kb5 {[%clk 0:00:03.1]} 70. Nf2
{[%clk 0:00:15.7]} 70... Ka4 {[%clk 0:00:04]} 71. Ng4 {[%clk 0:00:16.2]} 71...
Ka3 {[%clk 0:00:04.9]} 72. Ne5 {[%clk 0:00:16.8]} 72... Ka2 {[%clk 0:00:05.8]}
73. Nc6 {[%clk 0:00:17.6]} 73... Ka1 {[%clk 0:00:06.7]} 74. Nb4 {[%clk
0:00:18.1]} 74... Kb2 {[%clk 0:00:06.3]} 75. Nd3+ {[%clk 0:00:18.3]} 75... Kb1
{[%clk 0:00:06.1]} 76. Nf4 {[%clk 0:00:19]} 76... Ka1 {[%clk 0:00:05.8]} 77. Ne2
{[%clk 0:00:19.6]} 77... Kb1 {[%clk 0:00:05.7]} 78. Nd4 {[%clk 0:00:20.3]} 78...
Ka1 {[%clk 0:00:05.7]} 79. Nb5 {[%clk 0:00:21.2]} 79... Kb1 {[%clk 0:00:06.6]}
80. Na7 {[%clk 0:00:22.1]} 80... Kb2 {[%clk 0:00:06.5]} 81. Nc6 {[%clk 0:00:23]}
81... Ka1 {[%clk 0:00:06.4]} 82. Kxh3 {[%clk 0:00:23.9]} 1/2-1/2

[Event "*** SCC Grand Prix: Titled Tuesday Blitz"]
[Site "Chess.com"]
[Date "2020.06.23"]
[Round "1"]
[White "DraG0s3L"]
[Black "viditchess"]
[Result "0-1"]
[WhiteElo "2465"]
[BlackElo "3021"]
[TimeControl "180+1"]
[EndTime "10:09:16 PDT"]
[Termination "viditchess won by resignation"]

1. d4 {[%clk 0:03:00]} 1... Nf6 {[%clk 0:02:58.9]} 2. c4 {[%clk 0:02:59.9]} 2...
e6 {[%clk 0:02:59.3]} 3. Nc3 {[%clk 0:03:00.1]} 3... Bb4 {[%clk 0:02:59.2]} 4.
Nf3 {[%clk 0:02:59.6]} 4... d5 {[%clk 0:02:57.8]} 5. cxd5 {[%clk 0:02:59]} 5...
exd5 {[%clk 0:02:57.7]} 6. Bg5 {[%clk 0:02:59.1]} 6... O-O {[%clk 0:02:56.4]} 7.
e3 {[%clk 0:02:59.2]} 7... h6 {[%clk 0:02:55.6]} 8. Bh4 {[%clk 0:02:58.9]} 8...
Bf5 {[%clk 0:02:55.6]} 9. Bd3 {[%clk 0:02:57.7]} 9... Bxd3 {[%clk 0:02:54.9]}
10. Qxd3 {[%clk 0:02:58.6]} 10... Nbd7 {[%clk 0:02:48.1]} 11. O-O {[%clk
0:02:57]} 11... c6 {[%clk 0:02:47.9]} 12. Ne5 {[%clk 0:02:47.8]} 12... Qe8
{[%clk 0:02:37.7]} 13. Nxd7 {[%clk 0:02:38]} 13... Nxd7 {[%clk 0:02:38.6]} 14.
a3 {[%clk 0:02:34.4]} 14... Bxc3 {[%clk 0:02:24.7]} 15. Qxc3 {[%clk 0:02:29.7]}
15... Qe6 {[%clk 0:02:22.7]} 16. Bg3 {[%clk 0:02:26.4]} 16... Nb6 {[%clk
0:02:17.3]} 17. Rfc1 {[%clk 0:02:24.6]} 17... Qd7 {[%clk 0:02:10.8]} 18. a4
{[%clk 0:02:22]} 18... a5 {[%clk 0:02:06.3]} 19. Qc5 {[%clk 0:02:21.7]} 19...
Nc4 {[%clk 0:02:01.5]} 20. Rxc4 {[%clk 0:01:51.7]} 20... dxc4 {[%clk 0:02:02.4]}
21. Qxc4 {[%clk 0:01:52.6]} 21... Rfe8 {[%clk 0:02:00.9]} 22. Rc1 {[%clk
0:01:51.8]} 22... Rac8 {[%clk 0:01:41.3]} 23. Qc5 {[%clk 0:01:29.3]} 23... Qd5
{[%clk 0:01:38.1]} 24. Qb6 {[%clk 0:01:28.1]} 24... c5 {[%clk 0:01:16.3]} 25.
dxc5 {[%clk 0:01:15.1]} 25... Re6 {[%clk 0:01:07.1]} 26. Qxa5 {[%clk 0:01:11.3]}
26... b6 {[%clk 0:01:07.3]} 27. Qb4 {[%clk 0:00:55.2]} 27... Rxc5 {[%clk
0:01:05.5]} 28. Rf1 {[%clk 0:00:53.7]} 28... Rc4 {[%clk 0:00:45.6]} 29. Qb3
{[%clk 0:00:49.4]} 29... Qc6 {[%clk 0:00:45.1]} 30. h3 {[%clk 0:00:39.6]} 30...
Qxa4 {[%clk 0:00:44.4]} 31. Qd3 {[%clk 0:00:39.9]} 31... Qc6 {[%clk 0:00:41.9]}
32. Kh2 {[%clk 0:00:36.1]} 32... Rc1 {[%clk 0:00:22.1]} 33. Qd8+ {[%clk
0:00:35.4]} 33... Kh7 {[%clk 0:00:20.9]} 34. Qd3+ {[%clk 0:00:35.2]} 34... Rg6
{[%clk 0:00:21]} 35. Rxc1 {[%clk 0:00:30.7]} 35... Qxc1 {[%clk 0:00:21.9]} 36.
Qb3 {[%clk 0:00:31.5]} 36... Rf6 {[%clk 0:00:15.1]} 37. Qd3+ {[%clk 0:00:30.7]}
37... Rg6 {[%clk 0:00:14]} 38. Qb3 {[%clk 0:00:28.4]} 38... Kg8 {[%clk
0:00:14.4]} 39. Qb5 {[%clk 0:00:27.2]} 39... Qc6 {[%clk 0:00:14.4]} 40. Qe5
{[%clk 0:00:26.5]} 40... Re6 {[%clk 0:00:14.7]} 41. Qb8+ {[%clk 0:00:26.2]}
41... Kh7 {[%clk 0:00:15.3]} 42. Qf4 {[%clk 0:00:24.4]} 42... Kg8 {[%clk
0:00:13.3]} 43. Qb8+ {[%clk 0:00:24.1]} 43... Re8 {[%clk 0:00:13.6]} 44. Qf4
{[%clk 0:00:24.8]} 44... b5 {[%clk 0:00:14]} 45. b4 {[%clk 0:00:23.1]} 45... Qc4
{[%clk 0:00:13.9]} 46. Qd6 {[%clk 0:00:22.8]} 46... Rc8 {[%clk 0:00:12.1]} 47.
Be5 {[%clk 0:00:19.5]} 47... Qc6 {[%clk 0:00:10.8]} 48. Qd3 {[%clk 0:00:17.1]}
48... Re8 {[%clk 0:00:08.7]} 49. f4 {[%clk 0:00:14.9]} 49... f6 {[%clk
0:00:06.9]} 50. Bd4 {[%clk 0:00:13.7]} 50... Qd5 {[%clk 0:00:07.4]} 51. Qg6
{[%clk 0:00:12.5]} 51... Rf8 {[%clk 0:00:07.9]} 52. Bc5 {[%clk 0:00:12.4]} 52...
Ra8 {[%clk 0:00:07.9]} 53. e4 {[%clk 0:00:11.6]} 53... Qe6 {[%clk 0:00:07.3]}
54. e5 {[%clk 0:00:10.6]} 54... Rc8 {[%clk 0:00:05.8]} 55. Qe4 {[%clk
0:00:05.9]} 55... fxe5 {[%clk 0:00:05.8]} 56. fxe5 {[%clk 0:00:06.1]} 56... Re8
{[%clk 0:00:06.1]} 57. Qb7 {[%clk 0:00:04.1]} 57... Qxe5+ {[%clk 0:00:06.1]} 58.
Kh1 {[%clk 0:00:04.7]} 58... Qe1+ {[%clk 0:00:06.2]} 59. Kh2 {[%clk 0:00:05.2]}
59... Qe2 {[%clk 0:00:06]} 60. Qd5+ {[%clk 0:00:04.4]} 60... Re6 {[%clk
0:00:05.7]} 61. Qd8+ {[%clk 0:00:03.9]} 61... Kh7 {[%clk 0:00:06]} 62. Qd7
{[%clk 0:00:04]} 62... Qe5+ {[%clk 0:00:06]} 63. Kh1 {[%clk 0:00:04]} 63... Qf5
{[%clk 0:00:06.1]} 64. Qd4 {[%clk 0:00:03.6]} 64... Re1+ {[%clk 0:00:06]} 65.
Kh2 {[%clk 0:00:03.8]} 65... Qe5+ {[%clk 0:00:06.6]} 66. Qxe5 {[%clk 0:00:04.5]}
66... Rxe5 {[%clk 0:00:07.5]} 67. Kg3 {[%clk 0:00:05.4]} 67... Re4 {[%clk
0:00:08]} 68. Kf3 {[%clk 0:00:05.9]} 68... Rc4 {[%clk 0:00:08.4]} 69. g4 {[%clk
0:00:06.4]} 69... g6 {[%clk 0:00:08.8]} 70. Ke3 {[%clk 0:00:06.7]} 70... h5
{[%clk 0:00:09.4]} 71. gxh5 {[%clk 0:00:06.6]} 71... gxh5 {[%clk 0:00:10.3]} 72.
Kd3 {[%clk 0:00:07.2]} 72... Kg6 {[%clk 0:00:10.8]} 73. Bd6 {[%clk 0:00:07.1]}
73... Kg5 {[%clk 0:00:10.9]} 74. Be7+ {[%clk 0:00:07.5]} 74... Kf4 {[%clk
0:00:11.4]} 75. h4 {[%clk 0:00:07.4]} 75... Kg4 {[%clk 0:00:11.7]} 76. Kd2
{[%clk 0:00:07.4]} 76... Re4 {[%clk 0:00:11.5]} 77. Kd3 {[%clk 0:00:07.1]} 77...
Rxe7 {[%clk 0:00:11.6]} 0-1

[Event "*** SCC Grand Prix: Titled Tuesday Blitz"]
[Site "Chess.com"]
[Date "2020.06.23"]
[Round "1"]
[White "Colombiano07"]
[Black "Arman_Hakemi"]
[Result "0-1"]
[WhiteElo "2211"]
[BlackElo "2563"]
[TimeControl "180+1"]
[EndTime "10:09:21 PDT"]
[Termination "Arman_Hakemi won on time"]

1. Nf3 {[%clk 0:02:48.4]} 1... Nf6 {[%clk 0:02:59.5]} 2. b3 {[%clk 0:02:47.5]}
2... d5 {[%clk 0:02:58.8]} 3. Bb2 {[%clk 0:02:48.4]} 3... Bf5 {[%clk 0:02:58.9]}
4. e3 {[%clk 0:02:45]} 4... e6 {[%clk 0:02:58]} 5. c4 {[%clk 0:02:45.6]} 5... c6
{[%clk 0:02:57.6]} 6. Be2 {[%clk 0:02:43.7]} 6... Nbd7 {[%clk 0:02:57.6]} 7. O-O
{[%clk 0:02:43.9]} 7... h6 {[%clk 0:02:57]} 8. d4 {[%clk 0:02:40.7]} 8... Bd6
{[%clk 0:02:57.1]} 9. Bd3 {[%clk 0:02:40.7]} 9... Bxd3 {[%clk 0:02:57.1]} 10.
Qxd3 {[%clk 0:02:41.6]} 10... a5 {[%clk 0:02:56.2]} 11. Nbd2 {[%clk 0:02:42]}
11... a4 {[%clk 0:02:55.5]} 12. e4 {[%clk 0:02:41.4]} 12... dxe4 {[%clk
0:02:55]} 13. Nxe4 {[%clk 0:02:42.3]} 13... Nxe4 {[%clk 0:02:55.5]} 14. Qxe4
{[%clk 0:02:43.2]} 14... Nf6 {[%clk 0:02:56.1]} 15. Qe2 {[%clk 0:02:43.8]} 15...
a3 {[%clk 0:02:54.5]} 16. Bc3 {[%clk 0:02:43.4]} 16... O-O {[%clk 0:02:54.7]}
17. Rad1 {[%clk 0:02:43]} 17... Qc7 {[%clk 0:02:48.4]} 18. Ne5 {[%clk
0:02:43.1]} 18... Rfd8 {[%clk 0:02:41.5]} 19. f4 {[%clk 0:02:41.5]} 19... c5
{[%clk 0:02:40.7]} 20. dxc5 {[%clk 0:02:39.7]} 20... Bxc5+ {[%clk 0:02:40.2]}
21. Kh1 {[%clk 0:02:40.3]} 21... Rxd1 {[%clk 0:02:35.6]} 22. Rxd1 {[%clk
0:02:39.7]} 22... Rd8 {[%clk 0:02:36]} 23. h3 {[%clk 0:02:38.3]} 23... Rxd1+
{[%clk 0:02:24.8]} 24. Qxd1 {[%clk 0:02:39.2]} 24... Ne4 {[%clk 0:02:25.5]} 25.
Qf3 {[%clk 0:02:16.6]} 25... f5 {[%clk 0:02:07.3]} 26. Kh2 {[%clk 0:02:11.5]}
26... Qd6 {[%clk 0:01:59]} 27. Be1 {[%clk 0:01:57.3]} 27... Qd4 {[%clk
0:01:45.1]} 28. Qf1 {[%clk 0:01:47.3]} 28... Qb2 {[%clk 0:01:01]} 29. Qd3 {[%clk
0:01:24.4]} 29... Qxa2 {[%clk 0:00:54.3]} 30. Qd8+ {[%clk 0:01:23.8]} 30... Kh7
{[%clk 0:00:54.7]} 31. Qe8 {[%clk 0:01:24.4]} 31... Qxb3 {[%clk 0:00:15.8]} 32.
Qg6+ {[%clk 0:01:19.4]} 32... Kg8 {[%clk 0:00:15.8]} 33. Qxe6+ {[%clk
0:01:18.6]} 33... Kh7 {[%clk 0:00:12.1]} 34. Qxf5+ {[%clk 0:01:18.3]} 34... Kg8
{[%clk 0:00:12.4]} 35. Qxe4 {[%clk 0:00:29.2]} 35... a2 {[%clk 0:00:12.5]} 36.
Qd5+ {[%clk 0:00:29.2]} 36... Kh7 {[%clk 0:00:11.6]} 37. Qe4+ {[%clk 0:00:27.8]}
37... Kg8 {[%clk 0:00:12]} 38. Qd5+ {[%clk 0:00:27.9]} 38... Kh8 {[%clk
0:00:08.9]} 39. Nf7+ {[%clk 0:00:26.1]} 39... Kh7 {[%clk 0:00:08.4]} 40. Qf5+
{[%clk 0:00:26.1]} 40... Kg8 {[%clk 0:00:08.5]} 41. Nxh6+ {[%clk 0:00:24.1]}
41... gxh6 {[%clk 0:00:07.4]} 42. Qg6+ {[%clk 0:00:24.6]} 42... Kf8 {[%clk
0:00:06.2]} 43. Qf6+ {[%clk 0:00:24.8]} 43... Ke8 {[%clk 0:00:06.2]} 44. Qe6+
{[%clk 0:00:21.6]} 44... Be7 {[%clk 0:00:05.8]} 45. Bh4 {[%clk 0:00:19.2]} 45...
Qb4 {[%clk 0:00:03.5]} 46. Qc8+ {[%clk 0:00:19]} 46... Kf7 {[%clk 0:00:03.7]}
47. Qf5+ {[%clk 0:00:17.5]} 47... Ke8 {[%clk 0:00:03.4]} 48. Qc8+ {[%clk
0:00:17]} 48... Kf7 {[%clk 0:00:03.9]} 49. Qf5+ {[%clk 0:00:16.9]} 49... Kg8
{[%clk 0:00:02.4]} 50. Qg6+ {[%clk 0:00:16.5]} 50... Kf8 {[%clk 0:00:02.9]} 51.
Qxh6+ {[%clk 0:00:16.6]} 51... Ke8 {[%clk 0:00:03.5]} 52. Qg6+ {[%clk
0:00:15.4]} 52... Kd7 {[%clk 0:00:03.9]} 53. Qf5+ {[%clk 0:00:15.5]} 53... Kc6
{[%clk 0:00:04.5]} 54. Qd5+ {[%clk 0:00:14.5]} 54... Kb6 {[%clk 0:00:05]} 55.
Qe6+ {[%clk 0:00:11.3]} 55... Ka5 {[%clk 0:00:04.6]} 56. Be1 {[%clk 0:00:10.1]}
56... a1=Q {[%clk 0:00:03.5]} 57. Bxb4+ {[%clk 0:00:09.9]} 57... Bxb4 {[%clk
0:00:04.4]} 58. Qd5+ {[%clk 0:00:08.9]} 58... Ka4 {[%clk 0:00:03.5]} 59. Qxb7
{[%clk 0:00:08.4]} 59... Qd4 {[%clk 0:00:04.1]} 60. Qf7 {[%clk 0:00:06.9]} 60...
Bc5 {[%clk 0:00:03.8]} 61. h4 {[%clk 0:00:06.2]} 61... Qg1+ {[%clk 0:00:03.8]}
62. Kh3 {[%clk 0:00:06.8]} 62... Qh1+ {[%clk 0:00:04.1]} 63. Kg3 {[%clk
0:00:07]} 63... Qe1+ {[%clk 0:00:04.4]} 64. Kh3 {[%clk 0:00:06.7]} 64... Qh1+
{[%clk 0:00:04.6]} 65. Kg3 {[%clk 0:00:07.2]} 65... Qe1+ {[%clk 0:00:04.9]} 66.
Kg4 {[%clk 0:00:07.5]} 66... Qe2+ {[%clk 0:00:04.3]} 67. Kf5 {[%clk 0:00:07.2]}
67... Qxg2 {[%clk 0:00:03.7]} 68. Qd7+ {[%clk 0:00:06.4]} 68... Kb4 {[%clk
0:00:03.5]} 69. Qb5+ {[%clk 0:00:06.3]} 69... Kc3 {[%clk 0:00:04]} 70. Qxc5
{[%clk 0:00:06.8]} 70... Qh3+ {[%clk 0:00:04.7]} 71. Kg5 {[%clk 0:00:05.8]}
71... Qg3+ {[%clk 0:00:05]} 72. Kf5 {[%clk 0:00:04.1]} 72... Qh3+ {[%clk
0:00:05.5]} 73. Ke4 {[%clk 0:00:04.5]} 73... Qg2+ {[%clk 0:00:05.3]} 74. Ke5
{[%clk 0:00:04]} 74... Qe2+ {[%clk 0:00:05.4]} 75. Kd6 {[%clk 0:00:03.2]} 75...
Qd2+ {[%clk 0:00:04.5]} 76. Qd5 {[%clk 0:00:03]} 76... Qa2 {[%clk 0:00:03.5]}
77. c5 {[%clk 0:00:02.1]} 77... Qa6+ {[%clk 0:00:02.4]} 78. c6 {[%clk
0:00:01.5]} 78... Qf1 {[%clk 0:00:03.3]} 79. Qc5+ {[%clk 0:00:01.3]} 79... Kb3
{[%clk 0:00:04.2]} 0-1

[Event "*** SCC Grand Prix: Titled Tuesday Blitz"]
[Site "Chess.com"]
[Date "2020.06.23"]
[Round "1"]
[White "etesungam"]
[Black "Twitch_ElhamBlitz05"]
[Result "1/2-1/2"]
[WhiteElo "2401"]
[BlackElo "2764"]
[TimeControl "180+1"]
[EndTime "10:09:38 PDT"]
[Termination "Game drawn - insufficient material"]

1. d4 {[%clk 0:03:00.2]} 1... Nf6 {[%clk 0:02:59.7]} 2. Nf3 {[%clk 0:03:00.4]}
2... e6 {[%clk 0:03:00.3]} 3. c4 {[%clk 0:03:00.9]} 3... d5 {[%clk 0:03:01.2]}
4. Nc3 {[%clk 0:03:01.2]} 4... c6 {[%clk 0:03:01]} 5. cxd5 {[%clk 0:02:59]} 5...
exd5 {[%clk 0:03:01.9]} 6. Bf4 {[%clk 0:02:59]} 6... Bd6 {[%clk 0:03:01.2]} 7.
Bxd6 {[%clk 0:02:58.3]} 7... Qxd6 {[%clk 0:03:01.3]} 8. e3 {[%clk 0:02:58.9]}
8... O-O {[%clk 0:03:01.6]} 9. Bd3 {[%clk 0:02:59.4]} 9... Re8 {[%clk 0:03:02]}
10. Qc2 {[%clk 0:02:59]} 10... h6 {[%clk 0:03:01.6]} 11. h3 {[%clk 0:02:59]}
11... Nbd7 {[%clk 0:03:01.8]} 12. O-O {[%clk 0:02:59]} 12... Nf8 {[%clk
0:03:01.6]} 13. Ne5 {[%clk 0:02:49.8]} 13... Be6 {[%clk 0:02:59.3]} 14. f4
{[%clk 0:02:47.5]} 14... a6 {[%clk 0:02:57.2]} 15. Kh1 {[%clk 0:02:38.8]} 15...
Rac8 {[%clk 0:02:56.1]} 16. Qf2 {[%clk 0:02:32.7]} 16... c5 {[%clk 0:02:51.4]}
17. Rad1 {[%clk 0:02:32.2]} 17... cxd4 {[%clk 0:02:43.1]} 18. exd4 {[%clk
0:02:31.7]} 18... Bd7 {[%clk 0:02:43.7]} 19. Bb1 {[%clk 0:02:26.4]} 19... b5
{[%clk 0:02:21.4]} 20. a3 {[%clk 0:02:23.9]} 20... a5 {[%clk 0:02:20.3]} 21. Qf3
{[%clk 0:02:12.4]} 21... b4 {[%clk 0:02:17.5]} 22. axb4 {[%clk 0:02:12.3]} 22...
axb4 {[%clk 0:02:18.4]} 23. Ne2 {[%clk 0:02:11.9]} 23... Ne4 {[%clk 0:02:13]}
24. Ng3 {[%clk 0:02:03.3]} 24... Nxg3+ {[%clk 0:02:06.1]} 25. Qxg3 {[%clk
0:02:02.6]} 25... f6 {[%clk 0:01:39.4]} 26. Ng6 {[%clk 0:01:57.9]} 26... Re2
{[%clk 0:01:21.5]} 27. Nxf8 {[%clk 0:01:51.8]} 27... Qxf8 {[%clk 0:01:22.1]} 28.
Qd3 {[%clk 0:01:48.1]} 28... Re4 {[%clk 0:01:20]} 29. Qb3 {[%clk 0:01:40.6]}
29... Ree8 {[%clk 0:01:12.3]} 30. Qxd5+ {[%clk 0:01:39.7]} 30... Be6 {[%clk
0:01:12.3]} 31. Qh5 {[%clk 0:01:37.8]} 31... f5 {[%clk 0:01:02.3]} 32. d5 {[%clk
0:01:35.4]} 32... Bd7 {[%clk 0:01:01]} 33. d6 {[%clk 0:01:34.1]} 33... Qf7
{[%clk 0:00:58.8]} 34. Qh4 {[%clk 0:01:12.2]} 34... Re2 {[%clk 0:00:52.3]} 35.
Rf2 {[%clk 0:01:05.7]} 35... Re3 {[%clk 0:00:38.8]} 36. Rfd2 {[%clk 0:00:53.2]}
36... Rce8 {[%clk 0:00:33.7]} 37. Kh2 {[%clk 0:00:49.4]} 37... b3 {[%clk
0:00:28.8]} 38. Rd4 {[%clk 0:00:44]} 38... Re2 {[%clk 0:00:27.1]} 39. Bd3 {[%clk
0:00:40.1]} 39... Qg6 {[%clk 0:00:12.7]} 40. Bxe2 {[%clk 0:00:31.4]} 40... Rxe2
{[%clk 0:00:13.6]} 41. Qg3 {[%clk 0:00:30.8]} 41... Qe6 {[%clk 0:00:13.3]} 42.
R4d2 {[%clk 0:00:26]} 42... Re3 {[%clk 0:00:11.9]} 43. Qh4 {[%clk 0:00:24.8]}
43... Kh7 {[%clk 0:00:11.5]} 44. Qe7 {[%clk 0:00:22]} 44... Qxe7 {[%clk
0:00:09.4]} 45. dxe7 {[%clk 0:00:22.9]} 45... Be8 {[%clk 0:00:07.7]} 46. Rd3
{[%clk 0:00:20.9]} 46... Rxe7 {[%clk 0:00:07.6]} 47. Rxb3 {[%clk 0:00:21.4]}
47... Ba4 {[%clk 0:00:08.2]} 48. Rbd3 {[%clk 0:00:20.3]} 48... Bxd1 {[%clk
0:00:08.7]} 49. Rxd1 {[%clk 0:00:21.2]} 49... Re4 {[%clk 0:00:09.1]} 50. Rb1
{[%clk 0:00:20.2]} 50... Rxf4 {[%clk 0:00:08.9]} 51. b4 {[%clk 0:00:20.6]} 51...
Rd4 {[%clk 0:00:09.2]} 52. b5 {[%clk 0:00:21.1]} 52... Rd7 {[%clk 0:00:09.8]}
53. b6 {[%clk 0:00:21.7]} 53... Rb7 {[%clk 0:00:10.1]} 54. Kg3 {[%clk
0:00:21.2]} 54... g5 {[%clk 0:00:10.6]} 55. Kf3 {[%clk 0:00:21.8]} 55... Kg6
{[%clk 0:00:11.3]} 56. Ke3 {[%clk 0:00:22.4]} 56... Kf6 {[%clk 0:00:12]} 57. Kd4
{[%clk 0:00:23.1]} 57... g4 {[%clk 0:00:09.5]} 58. h4 {[%clk 0:00:19]} 58... f4
{[%clk 0:00:05.1]} 59. Ke4 {[%clk 0:00:18.9]} 59... f3 {[%clk 0:00:05.1]} 60.
gxf3 {[%clk 0:00:19.1]} 60... gxf3 {[%clk 0:00:06]} 61. Kxf3 {[%clk 0:00:19.7]}
61... Kf5 {[%clk 0:00:06.4]} 62. Kg3 {[%clk 0:00:20.1]} 62... h5 {[%clk
0:00:06.1]} 63. Rb5+ {[%clk 0:00:19.3]} 63... Ke4 {[%clk 0:00:06.2]} 64. Rb1
{[%clk 0:00:17.9]} 64... Rg7+ {[%clk 0:00:05.3]} 65. Kh3 {[%clk 0:00:17.8]}
65... Rb7 {[%clk 0:00:06.2]} 66. Re1+ {[%clk 0:00:17.7]} 66... Kf5 {[%clk
0:00:03.4]} 67. Rb1 {[%clk 0:00:17]} 67... Ke4 {[%clk 0:00:03.9]} 68. Rb5 {[%clk
0:00:17.4]} 68... Kf4 {[%clk 0:00:02.2]} 69. Kg2 {[%clk 0:00:16.6]} 69... Kg4
{[%clk 0:00:03.1]} 70. Rb4+ {[%clk 0:00:16.6]} 70... Kf5 {[%clk 0:00:04]} 71.
Kf3 {[%clk 0:00:17]} 71... Ke5 {[%clk 0:00:04.9]} 72. Rb5+ {[%clk 0:00:17.4]}
72... Kd6 {[%clk 0:00:03.3]} 73. Kf4 {[%clk 0:00:17.5]} 73... Kc6 {[%clk
0:00:04]} 74. Rb4 {[%clk 0:00:15.6]} 74... Rg7 {[%clk 0:00:03.8]} 75. Kf5 {[%clk
0:00:13.1]} 75... Kb7 {[%clk 0:00:03.2]} 76. Kf6 {[%clk 0:00:12.7]} 76... Rg1
{[%clk 0:00:03.6]} 77. Rb5 {[%clk 0:00:12.2]} 77... Rf1+ {[%clk 0:00:02.7]} 78.
Kg6 {[%clk 0:00:11.6]} 78... Rg1+ {[%clk 0:00:02.2]} 79. Kxh5 {[%clk 0:00:11]}
79... Rg8 {[%clk 0:00:03.1]} 80. Kh6 {[%clk 0:00:09.6]} 80... Rg4 {[%clk
0:00:03.8]} 81. h5 {[%clk 0:00:09]} 81... Kb8 {[%clk 0:00:04.7]} 82. Kh7 {[%clk
0:00:08.9]} 82... Rg5 {[%clk 0:00:04.8]} 83. h6 {[%clk 0:00:09.3]} 83... Rxb5
{[%clk 0:00:04.2]} 84. Kg8 {[%clk 0:00:09]} 84... Rxb6 {[%clk 0:00:03.9]} 85. h7
{[%clk 0:00:09.2]} 85... Ka7 {[%clk 0:00:04.6]} 86. Kg7 {[%clk 0:00:07.9]} 86...
Rb8 {[%clk 0:00:04.5]} 87. h8=Q {[%clk 0:00:07.9]} 87... Rxh8 {[%clk 0:00:04.6]}
88. Kxh8 {[%clk 0:00:08.8]} 1/2-1/2